bitfinex/quotes_SOLUSD_20241113
["timestamp","ask_amount","ask_price","bid_price","bid_amount"]
[1731506206578,17.05648826,212.28,212.14,0.1]
[1731506206775,37.35083838,212.27,212.12,0.12549]
[1731506207091,37.35083838,212.27,212.09,31.582]
[1731506207092,37.35083838,212.15,212.09,31.582]
[1731506207395,37.35083838,212.13,212.05,12.9946]
[1731506207602,43.21725707,212.13,212.05,12.9946]
[1731506207784,37.35083838,212.11,212.05,12.9946]
[1731506207987,37.35083838,212.09,212.05,12.9946]
[1731506208189,6.66378916,212.12,211.88,0.1]
[1731506208190,0.12549,212.06,211.96,12.7899]
[1731506208382,37.35083838,212.0,211.96,12.7899]
[1731506208781,161.5,212.09,211.96,12.7899]
[1731506208782,37.35083838,212.04,211.96,12.7899]
[1731506209193,37.35083838,212.04,211.89,30.2957945]
[1731506209389,43.21725707,212.04,211.89,30.2957945]
[1731506209686,70.1,212.09,211.94,0.1]
[1731506209687,2.07107361,212.09,211.94,0.1]
[1731506209891,37.35083838,212.1,211.93,0.12549]
[1731506210097,37.35083838,212.06,211.91,0.1]
[1731506210401,37.35083838,212.16,212.01,0.1]
[1731506210780,231.4,212.21,212.0,0.12549]
[1731506210781,37.35083838,212.14,212.0,0.12549]
[1731506210980,37.35083838,212.08,211.93,0.1]
[1731506211203,5.86641869,212.08,211.96,0.1]
[1731506211400,5.86641869,212.09,211.99,0.12549]
[1731506211600,37.35083838,212.08,211.92,0.1]
[1731506211895,5.86641869,212.07,211.95,0.1]
[1731506212077,37.35083838,212.06,211.91,0.1]
[1731506212276,5.86641869,212.05,211.89,30.3957945]
[1731506212476,37.35083838,211.99,211.89,30.2957945]
[1731506212702,37.35083838,211.97,211.89,30.2957945]
[1731506212907,37.35083838,211.91,211.89,30.2957945]
[1731506213204,23.776884,212.02,211.89,30.2957945]
[1731506213385,37.35083838,211.95,211.89,30.2957945]
[1731506213586,184.4722926,212.05,211.89,30.2957945]
[1731506213587,37.35083838,211.97,211.89,30.2957945]
[1731506213884,37.35083838,212.03,211.91,0.1]
[1731506214203,37.35083838,212.05,211.9,0.22549]
[1731506214400,37.35083838,212.03,211.91,0.1]
[1731506214988,37.35083838,212.03,211.92,0.1]
[1731506215288,37.35083838,212.05,211.95,0.1]
[1731506215494,37.35083838,212.05,211.94,0.12549]
[1731506215693,37.35083838,212.03,211.93,0.1]
[1731506215902,37.35083838,212.05,211.93,0.1]
[1731506216494,5.86641869,212.05,211.97,0.1]
[1731506216806,37.35083838,212.09,211.97,0.1]
[1731506216981,37.35083838,212.07,211.95,0.32549]
[1731506217183,37.35083838,212.07,211.95,0.22549]
[1731506217489,5.86641869,212.07,211.95,0.22549]
[1731506217805,47.93265707,212.07,211.91,0.2]
[1731506218007,47.93265707,212.07,211.91,0.1]
[1731506218008,37.35083838,212.03,211.91,0.1]
[1731506218185,37.35083838,212.03,211.9,0.12549]
[1731506218382,37.35083838,212.05,211.91,0.1]
[1731506218584,37.35083838,212.03,211.91,0.1]
[1731506218785,43.21725707,212.05,211.91,0.1]
[1731506218984,37.35083838,212.03,211.89,30.3957945]
[1731506219240,37.35083838,212.03,211.89,30.2957945]
[1731506219408,37.35083838,211.99,211.89,30.2957945]
[1731506220001,5.86641869,212.02,211.9,0.12549]
[1731506220303,5.86641869,212.02,211.91,0.1]
[1731506220884,37.35083838,212.0,211.9,0.12549]
[1731506221085,37.35083838,212.0,211.89,30.2957945]
[1731506221086,5.86641869,211.99,211.89,30.2957945]
[1731506221397,37.35083838,212.06,211.92,0.1]
[1731506221785,37.35083838,212.08,211.97,0.1]
[1731506221981,37.35083838,212.06,211.93,0.1]
[1731506222297,43.21725707,212.06,211.95,0.1]
[1731506222604,37.35083838,212.04,211.94,0.12549]
[1731506222787,37.35083838,212.06,211.94,0.12549]
[1731506222987,37.35083838,212.02,211.94,0.12549]
[1731506223186,5.86641869,212.06,211.89,30.2957945]
[1731506223187,37.35083838,212.06,211.96,0.1]
[1731506223382,37.35083838,212.06,211.9,20.0]
[1731506223383,37.35083838,212.06,211.94,0.22549]
[1731506223605,37.35083838,212.02,211.89,30.2957945]
[1731506223795,5.86641869,212.01,211.89,30.2957945]
[1731506224183,37.35083838,212.0,211.89,30.2957945]
[1731506224419,5.86641869,211.99,211.89,30.2957945]
[1731506224903,39.32763391,212.02,211.89,30.2957945]
[1731506225210,5.86641869,212.06,211.92,0.1]
[1731506225503,5.86641869,212.06,211.59,70.0]
[1731506225504,0.12549,211.91,211.69,12.9069]
[1731506225704,37.35083838,211.82,211.69,12.9069]
[1731506225885,6.50096313,211.82,211.68,0.1]
[1731506226079,37.35083838,211.88,211.72,0.1]
[1731506226281,44.00216818,211.88,211.74,0.1]
[1731506226502,37.35083838,211.88,211.74,0.1]
[1731506226802,0.78831226,211.89,211.76,0.1]
[1731506227017,6.6513298,211.87,211.78,30.3073]
[1731506227215,0.78831226,211.89,211.81,0.32549]
[1731506227512,0.78831226,211.89,211.87,0.1]
[1731506227800,2.04013162,212.03,211.81,0.12549]
[1731506227801,4.7143,212.12,211.9,0.1]
[1731506227985,37.35083838,212.07,211.87,0.1]
[1731506228191,37.35083838,212.05,211.86,0.1]
[1731506228408,6.28198535,212.04,211.89,0.2]
[1731506228701,6.28198535,212.04,211.91,0.1]
[1731506228904,6.88978238,212.03,211.9,0.2]
[1731506229106,6.21994646,212.02,211.87,0.1]
[1731506229291,13.10972884,212.02,211.87,0.1]
[1731506229487,13.10972884,212.02,211.81,20.1]
[1731506229488,6.88978238,212.01,211.89,0.2]
[1731506229689,6.21994646,212.0,211.94,0.1]
[1731506229893,11.19398166,212.19,212.03,0.1]
[1731506230210,11.19398166,212.19,212.03,0.22549]
[1731506230505,0.7862679,212.18,212.04,0.1]
[1731506230712,37.35083838,212.16,211.96,23.776884]
[1731506231004,37.35083838,212.16,211.95,43.8911]
[1731506231005,0.12549,212.09,211.95,43.8911]
[1731506231212,5.15445589,212.08,211.95,43.8911]
[1731506231401,5.15445589,212.08,211.96,0.12549]
[1731506232006,5.04297597,212.11,212.04,0.1]
[1731506232220,9.86765589,212.17,211.95,43.8911]
[1731506232513,5.15445589,212.16,211.97,0.22549]
[1731506232686,5.15445589,212.16,212.02,0.1]
[1731506232887,5.15445589,212.16,212.04,0.1]
[1731506233088,0.7862679,212.18,212.06,0.1]
[1731506233301,0.7862679,212.18,212.04,0.1]
[1731506233495,5.94072379,212.18,212.01,0.22549]
[1731506233805,5.15445589,212.17,212.01,0.12549]
[1731506234000,5.15445589,212.17,212.0,0.12549]
[1731506234197,0.12549,212.16,211.95,43.9911]
[1731506234407,0.12549,212.13,211.95,43.9911]
[1731506234705,5.04297597,212.17,211.99,0.1]
[1731506234884,23.776884,212.17,211.99,0.1]
[1731506235090,28.81985997,212.17,211.99,0.1]
[1731506235299,28.93133989,212.17,212.02,0.1]
[1731506235520,11.19398166,212.19,212.02,0.1]
[1731506235521,11.19398166,212.19,212.04,0.1]
[1731506235809,5.82924387,212.18,212.06,0.1]
[1731506235997,0.7862679,212.18,212.02,0.22549]
[1731506236195,0.7862679,212.18,212.03,0.1]
[1731506236419,5.82924387,212.18,212.03,0.1]
[1731506236587,5.82924387,212.18,212.04,0.12549]
[1731506236782,5.82924387,212.18,212.03,0.1]
[1731506236989,9.99314589,212.17,211.95,43.8911]
[1731506237205,6.98640028,212.18,212.13,0.2]
[1731506237394,37.35083838,212.44,212.15,43.1383]
[1731506237595,0.78592911,212.44,212.23,0.1]
[1731506237794,0.78592911,212.44,212.23,0.2]
[1731506237795,18.840193,212.43,212.23,0.2]
[1731506238006,18.840193,212.43,212.17,0.1]
[1731506238007,0.1,212.41,212.17,0.1]
[1731506238192,37.35083838,212.37,212.15,43.1383]
[1731506238388,0.1,212.32,212.15,43.1383]
[1731506238592,5.77957852,212.31,212.15,43.1383]
[1731506238999,0.1,212.28,212.15,43.1383]
[1731506239225,5.77957852,212.27,212.15,43.1383]
[1731506239389,23.776884,212.26,212.15,43.1383]
[1731506239923,23.902374,212.23,212.05,12.5894]
[1731506240209,23.776884,212.21,212.05,12.5894]
[1731506240407,23.902374,212.19,212.05,12.5894]
[1731506240595,23.902374,212.19,212.01,32.5026]
[1731506240596,23.902374,212.13,212.01,32.5026]
[1731506240797,5.87957852,212.12,212.01,32.5026]
[1731506240996,0.12549,212.1,212.01,32.5026]
[1731506241196,23.776884,212.11,212.01,32.5026]
[1731506241508,23.776884,212.09,212.01,32.5026]
[1731506241715,5.77957852,212.08,212.01,32.5026]
[1731506241893,23.776884,212.07,212.01,32.5026]
[1731506242599,23.776884,212.05,211.95,12.3703]
[1731506242912,29.55646252,212.05,211.95,12.3703]
[1731506243095,5.77957852,212.04,211.95,12.3703]
[1731506243308,0.22549,212.02,211.92,32.0682]
[1731506243503,23.776884,212.0,211.92,32.0682]
[1731506243895,4.7155,212.07,211.92,32.0682]
[1731506244209,23.776884,212.02,211.92,32.0682]
[1731506244806,70.0,212.17,211.93,0.12549]
[1731506245013,0.1,212.14,211.93,0.12549]
[1731506245217,5.77957852,212.13,211.93,0.12549]
[1731506245621,0.12549,212.12,211.92,32.1682]
[1731506245805,5.77957852,212.13,211.94,0.1]
[1731506245999,107.35083838,212.24,211.98,0.1]
[1731506246212,161.4,212.29,212.07,0.1]
[1731506246213,5.77957852,212.25,212.07,0.1]
[1731506246517,107.35083838,212.32,212.0,20.12549]
[1731506246518,5.77957852,212.33,212.1,0.1]
[1731506246819,5.87957852,212.33,212.1,0.1]
[1731506247136,5.77957852,212.32,212.15,0.1]
[1731506247422,75.77957852,212.32,212.14,13.0433]
[1731506247718,5.77957852,212.32,212.14,13.0433]
[1731506247898,0.12549,212.31,212.14,13.0433]
[1731506248096,5.77957852,212.3,212.14,13.0433]
[1731506248428,70.0,212.4,212.17,0.1]
[1731506248617,5.77957852,212.4,212.22,0.1]
[1731506248922,18.840193,212.43,212.22,0.1]
[1731506249100,6.56586597,212.42,212.18,0.12549]
[1731506249297,6.56586597,212.42,212.19,0.1]
[1731506249498,5.77957852,212.42,212.2,0.1]
[1731506249716,5.77957852,212.42,212.17,20.12549]
[1731506249931,70.1,212.41,212.18,0.1]
[1731506250103,5.77957852,212.4,212.2,0.1]
[1731506250309,5.77957852,212.4,212.24,0.12549]
[1731506250514,5.77957852,212.4,212.24,0.22549]
[1731506250709,5.77957852,212.4,212.23,32.7485]
[1731506251110,5.77957852,212.4,212.24,0.12549]
[1731506251321,5.77957852,212.45,212.24,23.902374]
[1731506251507,23.5208,212.58,212.24,23.902374]
[1731506251508,5.77957852,212.43,212.29,0.1]
[1731506251706,18.832811,212.47,212.31,0.12549]
[1731506251907,5.77957852,212.52,212.32,0.1]
[1731506252122,18.05557852,212.52,212.33,0.12549]
[1731506252339,18.05557852,212.52,212.34,0.1]
[1731506252510,5.77957852,212.52,212.31,0.22549]
[1731506252706,5.77957852,212.52,212.31,0.12549]
[1731506253026,37.57632838,212.44,212.3,12.276]
[1731506253227,0.22549,212.4,212.3,12.276]
[1731506253409,5.77957852,212.39,212.2,12.0997]
[1731506253724,0.1,212.35,212.2,12.0997]
[1731506253905,5.90506852,212.34,212.2,12.0997]
[1731506254112,0.12549,212.3,212.2,12.0997]
[1731506254313,0.1,212.25,212.13,31.5167]
[1731506254609,23.776884,212.23,212.01,0.1]
[1731506254809,37.35083838,212.3,212.0,44.4388]
[1731506254810,70.1,212.34,212.06,0.1]
[1731506255008,23.776884,212.33,212.04,0.1]
[1731506255208,0.1,212.29,212.04,0.1]
[1731506255410,29.68195252,212.28,212.02,0.1]
[1731506255624,0.1,212.27,212.02,0.1]
[1731506255822,0.12549,212.25,212.02,0.2]
[1731506256023,23.902374,212.25,212.03,0.1]
[1731506256328,23.776884,212.23,212.01,0.1]
[1731506256537,29.55646252,212.23,212.02,0.1]
[1731506256749,29.55646252,212.23,212.01,0.1]
[1731506256925,23.776884,212.21,212.03,0.1]
[1731506257130,23.776884,212.21,212.06,0.1]
[1731506257332,5.77957852,212.28,212.08,0.1]
[1731506257830,5.77957852,212.28,212.09,0.1]
[1731506258010,5.77957852,212.35,212.13,12.6729]
[1731506258216,0.28262,212.3,212.14,43.902374]
[1731506258435,0.28262,212.3,212.14,0.12549]
[1731506258645,0.28262,212.3,212.14,23.902374]
[1731506259132,0.28262,212.3,212.15,0.12549]
[1731506259521,5.77957852,212.29,212.15,0.12549]
[1731506259837,5.77957852,212.29,212.13,44.7833]
[1731506260146,0.28262,212.3,212.14,0.22549]
[1731506260446,0.28262,212.3,212.14,20.22549]
[1731506261039,5.77957852,212.42,212.21,0.2]
[1731506261331,5.77957852,212.42,212.22,0.12549]
[1731506261640,5.77957852,212.42,212.2,0.1]
[1731506262015,5.77957852,212.42,212.19,0.12549]
[1731506262226,5.77957852,212.42,212.19,23.902374]
[1731506262521,0.12549,212.41,212.15,0.1]
[1731506262839,0.12549,212.39,212.17,0.22549]
[1731506263013,5.77957852,212.38,212.2,0.1]
[1731506263219,5.77957852,212.38,212.19,0.12549]
[1731506263515,5.77957852,212.38,212.18,0.1]
[1731506263714,5.77957852,212.38,212.19,0.12549]
[1731506264418,23.776884,212.37,212.16,0.1]
[1731506264620,23.776884,212.35,212.18,0.2]
[1731506264833,1.98848226,212.43,212.21,23.876884]
[1731506265033,23.776884,212.37,212.19,0.1]
[1731506265226,29.55646252,212.37,212.19,0.12549]
[1731506265435,37.35083838,212.43,212.16,0.1]
[1731506265436,23.776884,212.35,212.16,0.1]
[1731506265637,23.776884,212.33,212.16,0.1]
[1731506265938,5.77957852,212.32,212.16,0.1]
[1731506266157,23.776884,212.31,212.13,44.8833]
[1731506266438,23.776884,212.29,212.13,44.8833]
[1731506266620,5.77957852,212.28,212.13,44.7833]
[1731506266820,37.35083838,212.39,212.13,44.8833]
[1731506267037,23.776884,212.34,212.14,0.12549]
[1731506267246,29.55646252,212.34,212.14,0.1]
[1731506267450,23.776884,212.32,212.13,44.7833]
[1731506267745,23.776884,212.3,212.13,44.7833]
[1731506267919,5.77957852,212.29,212.13,44.7833]
[1731506268132,5.77957852,212.29,212.13,44.8833]
[1731506268330,5.77957852,212.29,212.14,0.12549]
[1731506268627,5.77957852,212.29,212.16,0.1]
[1731506268938,5.77957852,212.35,212.14,0.12549]
[1731506269131,37.35083838,212.26,212.13,44.7833]
[1731506269344,37.35083838,212.26,212.04,33.12]
[1731506269345,37.35083838,212.22,212.04,33.12]
[1731506269548,10.72401511,212.21,212.04,33.12]
[1731506269853,23.776884,212.2,212.04,33.12]
[1731506270044,23.776884,212.18,212.04,33.12]
[1731506270245,23.776884,212.16,212.04,33.12]
[1731506270459,5.77957852,212.15,212.04,33.12]
[1731506270652,23.776884,212.14,212.04,33.12]
[1731506271341,0.12549,212.13,212.04,33.12]
[1731506271649,23.776884,212.12,212.04,33.12]
[1731506272856,0.78519383,212.19,212.05,0.12549]
[1731506273150,10.72401511,212.26,212.05,20.22549]
[1731506273349,0.12549,212.27,212.05,20.22549]
[1731506273753,5.77957852,212.26,212.05,20.12549]
[1731506274053,0.12549,212.25,212.05,0.12549]
[1731506274234,0.12549,212.23,212.05,0.12549]
[1731506274435,5.77957852,212.24,212.05,0.12549]
[1731506274638,5.77957852,212.24,212.05,23.902374]
[1731506274844,5.77957852,212.24,212.07,0.12549]
[1731506275343,5.77957852,212.24,212.06,0.12549]
[1731506275648,5.77957852,212.24,212.06,0.22549]
[1731506276350,23.776884,212.23,212.06,0.12549]
[1731506276567,23.776884,212.23,212.06,0.22549]
[1731506277438,29.55646252,212.23,212.05,20.0]
[1731506277654,23.776884,212.21,212.06,0.1]
[1731506277840,0.78468112,212.31,212.06,0.1]
[1731506277841,42.06033838,212.34,212.08,0.1]
[1731506278037,5.77957852,212.3,212.08,0.1]
[1731506278249,0.12549,212.29,212.08,0.1]
[1731506278456,0.12549,212.27,212.06,0.1]
[1731506278636,5.77957852,212.27,212.05,20.0]
[1731506278838,5.77957852,212.27,212.07,20.0]
[1731506279150,23.776884,212.26,212.08,0.12549]
[1731506279345,5.77957852,212.26,212.08,0.12549]
[1731506279547,23.776884,212.25,212.08,0.12549]
[1731506279952,42.05983838,212.36,212.1,24.002374]
[1731506280157,5.77957852,212.3,212.12,0.1]
[1731506280460,5.77957852,212.3,212.15,23.902374]
[1731506280757,5.77957852,212.3,212.15,0.12549]
[1731506280940,4.94443659,212.34,212.15,20.12549]
[1731506281136,5.77957852,212.34,212.15,20.12549]
[1731506281342,5.90506852,212.33,212.15,0.12549]
[1731506281556,0.12549,212.28,212.14,13.1765]
[1731506281766,0.12549,212.25,212.14,13.1765]
[1731506281957,0.12549,212.23,212.14,13.1765]
[1731506282163,29.68195252,212.23,212.14,13.1765]
[1731506282339,29.55646252,212.23,212.14,13.1765]
[1731506282543,23.776884,212.23,212.14,13.1765]
[1731506282855,23.902374,212.21,212.14,13.1765]
[1731506283062,23.902374,212.19,212.06,12.5699]
[1731506283257,184.55371506,212.27,212.03,32.0121]
[1731506283258,37.35083838,212.14,212.03,32.0121]
[1731506283467,0.12549,212.11,211.98,12.5699]
[1731506283642,23.776884,212.09,211.98,12.5699]
[1731506283840,23.776884,212.07,211.98,12.5699]
[1731506284140,23.776884,212.07,211.73,0.4568862]
[1731506284141,23.776884,212.05,211.89,12.5649]
[1731506284345,43.1304169,212.04,211.89,12.5649]
[1731506284558,23.776884,212.03,211.89,12.5649]
[1731506284855,23.776884,212.01,211.89,12.5649]
[1731506285159,2.05119366,212.03,211.89,12.5649]
[1731506285360,23.776884,212.02,211.89,12.5649]
[1731506286258,0.12549,212.01,211.89,12.5649]
[1731506286467,29.55646252,212.03,211.89,44.0492]
[1731506286796,0.12549,212.02,211.89,44.0492]
[1731506287860,29.55646252,212.03,211.89,44.0492]
[1731506288160,2.05151885,212.06,211.89,44.0492]
[1731506288161,37.47632838,212.05,211.89,44.0492]
[1731506288347,0.12549,212.01,211.89,44.0492]
[1731506288748,5.77957852,212.02,211.89,44.0492]
[1731506288948,5.77957852,212.07,211.89,44.0492]
[1731506289153,0.12549,212.04,211.89,44.0492]
[1731506289363,4.7167,212.01,211.89,44.0492]
[1731506289655,5.77957852,212.0,211.89,44.0492]
[1731506289862,37.47632838,211.99,211.89,44.0492]
[1731506290065,0.12549,211.97,211.89,31.4843]
[1731506290263,23.902374,211.97,211.89,31.4843]
[1731506290576,29.68195252,211.97,211.81,12.2042]
[1731506290743,29.68195252,211.97,211.73,0.4568862]
[1731506290744,0.12549,211.87,211.73,0.4568862]
[1731506290940,43.1304169,211.86,211.73,0.4568862]
[1731506291156,0.12549,211.83,211.73,0.4568862]
[1731506291360,5.77957852,211.82,211.73,0.4568862]
[1731506291552,107.45083838,211.88,211.73,0.4568862]
[1731506291553,2.06960909,211.87,211.73,0.4568862]
[1731506291749,0.12549,211.86,211.73,0.4568862]
[1731506291947,7.81428513,211.9,211.73,0.4568862]
[1731506292474,37.45083838,212.06,211.79,0.22549]
[1731506292847,6.98176408,212.05,211.79,0.22549]
[1731506293045,0.12549,212.04,211.81,0.12549]
[1731506293263,5.58729074,212.04,211.81,0.12549]
[1731506293459,5.46180074,212.04,211.81,0.12549]
[1731506293664,5.46180074,212.03,211.81,0.12549]
[1731506294254,0.12549,212.02,211.81,0.12549]
[1731506294452,5.46180074,212.01,211.81,0.12549]
[1731506294761,0.12549,212.0,211.81,0.12549]
[1731506294968,5.46180074,212.01,211.81,0.12549]
[1731506295552,12.9341,212.0,211.81,0.12549]
[1731506295958,0.12549,211.99,211.81,0.12549]
[1731506296159,12.9341,212.0,211.81,0.12549]
[1731506296360,0.12549,211.99,211.81,0.12549]
[1731506296661,12.9341,212.0,211.8,12.9341]
[1731506296854,99.23868474,211.99,211.8,12.9341]
[1731506297265,0.12549,211.98,211.8,12.9341]
[1731506297766,0.12549,211.96,211.8,12.9341]
[1731506298869,5.58729074,211.96,211.8,12.9341]
[1731506299059,23.902374,211.94,211.8,12.9341]
[1731506299367,37.35083838,211.91,211.74,33.1182]
[1731506299573,37.35083838,211.83,211.74,33.1182]
[1731506299773,23.776884,211.82,211.74,33.1182]
[1731506299949,0.12549,211.81,211.74,33.1182]
[1731506300349,23.776884,211.82,211.74,33.1182]
[1731506301060,7.05762296,211.82,211.74,33.1182]
[1731506301253,23.776884,211.81,211.74,33.1182]
[1731506301465,0.12549,211.78,211.74,33.1182]
[1731506301668,23.776884,211.77,211.73,0.4568862]
[1731506301875,0.12549,211.76,211.73,0.4568862]
[1731506302054,7.05762296,211.76,211.73,0.4568862]
[1731506302258,23.776884,211.75,211.61,13.1279]
[1731506302973,30.83450696,211.75,211.62,0.12549]
[1731506303172,2.01104089,211.79,211.62,0.12549]
[1731506303351,7.05762296,211.81,211.62,0.12549]
[1731506303761,37.35083838,211.77,211.58,31.1474]
[1731506303970,37.35083838,211.75,211.58,31.1474]
[1731506304178,7.05762296,211.74,211.58,31.1474]
[1731506304361,23.776884,211.73,211.59,0.12549]
[1731506304881,0.12549,211.8,211.61,0.12549]
[1731506305175,0.12549,211.8,211.62,13.3054]
[1731506305361,0.12549,211.8,211.63,0.12549]
[1731506305556,0.12549,211.8,211.69,0.12549]
[1731506305765,0.12549,211.8,211.68,31.874]
[1731506306654,0.12549,211.8,211.69,0.12549]
[1731506307463,0.12549,211.8,211.68,31.874]
[1731506307778,0.12549,211.8,211.69,0.12549]
[1731506308671,0.12549,211.8,211.71,0.1]
[1731506308862,0.78515951,211.92,211.73,0.12549]
[1731506309362,2.8153325,211.92,211.73,0.12549]
[1731506310090,23.776884,211.91,211.73,0.12549]
[1731506310461,0.78515951,211.92,211.73,0.12549]
[1731506310780,6.35345629,211.96,211.75,0.12549]
[1731506311077,13.71901795,212.0,211.79,0.22549]
[1731506311287,12.9341,212.0,211.83,0.22549]
[1731506311463,37.35083838,212.12,211.89,0.12549]
[1731506311664,18.867923,212.05,211.89,0.12549]
[1731506311968,6.35345629,212.09,211.91,0.12549]
[1731506312175,6.35345629,212.09,211.9,13.3088]
[1731506312370,18.867866,212.08,211.91,0.12549]
[1731506312574,6.35345629,212.07,211.91,0.12549]
[1731506312772,0.78469902,212.14,211.92,0.1]
[1731506312976,0.12549,212.11,211.91,0.12549]
[1731506313167,6.0645674,212.1,211.91,0.12549]
[1731506313967,6.0645674,212.1,211.91,43.902374]
[1731506314163,6.0645674,212.13,211.91,0.12549]
[1731506314374,6.84933664,212.13,211.91,0.12549]
[1731506315287,6.84933664,212.13,211.91,0.22549]
[1731506315484,6.84933664,212.13,211.91,0.12549]
[1731506315781,23.776884,212.12,211.91,0.12549]
[1731506315984,6.1900574,212.11,211.91,0.12549]
[1731506316197,23.776884,212.1,211.91,0.12549]
[1731506316567,23.776884,212.09,211.91,0.12549]
[1731506316767,23.776884,212.09,211.9,13.3088]
[1731506316972,29.8414514,212.09,211.9,13.3088]
[1731506317183,29.8414514,212.09,211.91,0.12549]
[1731506317489,13.3088,212.14,211.92,0.1]
[1731506317781,6.0645674,212.13,211.99,13.02499]
[1731506318098,13.3088,212.14,211.99,13.02499]
[1731506318464,6.85007962,212.19,211.99,13.02499]
[1731506318666,0.78551222,212.19,212.04,0.12549]
[1731506319282,6.0645674,212.18,211.99,12.7995]
[1731506319474,6.0645674,212.18,211.99,12.8995]
[1731506319672,6.0645674,212.18,212.0,0.12549]
[1731506319871,0.2844125,212.2,212.05,0.1]
[1731506320177,0.2844125,212.2,212.06,0.12549]
[1731506320574,0.2844125,212.2,212.06,24.002374]
[1731506321073,0.2844125,212.2,212.06,23.902374]
[1731506321391,0.2844125,212.2,212.05,42.3446]
[1731506321574,37.35083838,212.18,211.97,12.4451]
[1731506321782,37.35083838,212.14,211.97,12.4451]
[1731506322090,23.776884,212.12,211.97,12.4451]
[1731506322389,23.776884,212.1,211.97,12.4451]
[1731506322591,6.1900574,212.09,211.97,12.4451]
[1731506322781,23.776884,212.08,211.97,12.4451]
[1731506324870,6.0645674,212.09,211.97,12.4451]
[1731506325885,4.7132,212.17,211.98,0.12549]
[1731506326088,6.0645674,212.14,211.97,12.4451]
[1731506326588,6.0645674,212.14,211.98,0.12549]
[1731506326894,0.2844125,212.2,212.02,0.1]
[1731506328379,0.2844125,212.2,212.0,24.002374]
[1731506328579,6.0645674,212.19,212.0,0.1]
[1731506328769,6.0645674,212.19,212.04,0.1]
[1731506328968,0.2844125,212.2,212.06,0.12549]
[1731506330793,0.2844125,212.2,212.06,24.002374]
[1731506331177,0.2844125,212.2,212.06,0.12549]
[1731506331377,0.2844125,212.2,212.08,0.1]
[1731506331828,0.2844125,212.2,212.1,0.1]
[1731506332093,0.2844125,212.2,212.06,23.902374]
[1731506332094,6.064567,212.25,212.12,0.12549]
[1731506332291,6.0645674,212.31,212.12,0.12549]
[1731506332589,8.06022839,212.31,212.12,0.12549]
[1731506332888,19.2348674,212.3,212.12,0.12549]
[1731506333089,19.2348674,212.3,212.12,0.22549]
[1731506333393,23.9452674,212.3,212.11,13.1703]
[1731506334283,23.9452674,212.3,212.12,0.12549]
[1731506334484,23.776884,212.29,212.12,0.12549]
[1731506334684,29.8414514,212.29,212.12,0.12549]
[1731506334880,6.0645674,212.29,212.12,0.12549]
[1731506335083,13.1703,212.3,212.12,0.12549]
[1731506335393,13.1703,212.3,212.14,0.12549]
[1731506336177,6.0645674,212.36,212.15,20.1]
[1731506336494,19.2348674,212.36,212.16,23.876884]
[1731506336695,19.2348674,212.36,212.17,0.12549]
[1731506336999,19.2348674,212.36,212.19,0.12549]
[1731506337292,13.1703,212.36,212.19,0.12549]
[1731506337980,23.9439674,212.36,212.19,0.12549]
[1731506338182,6.0645674,212.35,212.19,0.12549]
[1731506338382,23.776884,212.34,212.19,0.12549]
[1731506338592,6.0645674,212.33,212.18,12.7864]
[1731506338779,23.776884,212.32,212.18,12.7864]
[1731506339095,6.0645674,212.31,212.18,12.7864]
[1731506339397,23.776884,212.3,212.18,12.7864]
[1731506339895,6.0645674,212.31,212.19,0.12549]
[1731506340198,23.9438674,212.36,212.18,12.7864]
[1731506340399,37.35083838,212.34,212.18,12.7864]
[1731506340606,6.1900574,212.33,212.18,12.7864]
[1731506341098,10.7743674,212.33,212.18,12.7864]
[1731506341278,23.776884,212.32,212.18,12.7864]
[1731506341480,23.776884,212.3,212.18,12.7864]
[1731506341679,29.8414514,212.3,212.18,12.7864]